bitfinex-derivatives/quotes_BTCF0:USTF0_20241224
["timestamp","ask_amount","ask_price","bid_price","bid_amount"]
[1735064424749,0.4576,99245.0,99234.0,0.3608]
[1735064424958,0.4576,99245.0,99242.0,0.050412]
[1735064425650,0.4576,99245.0,99244.0,0.050411]
[1735064425963,0.3608,99245.0,99244.0,0.050411]
[1735064426150,0.0958,99259.0,99242.0,0.3608]
[1735064426352,0.0958,99259.0,99257.0,0.050404]
[1735064426747,0.0958,99259.0,99253.0,0.3608]
[1735064427248,0.3608,99268.0,99253.0,0.3608]
[1735064427554,0.3608,99268.0,99258.0,0.09754401]
[1735064427963,0.1024,99274.0,99270.0,0.050397]
[1735064428153,0.050404,99257.0,99241.0,0.3608]
[1735064428348,0.3608,99271.0,99249.0,0.3608]
[1735064428650,0.1024,99274.0,99268.0,0.050398]
[1735064428958,0.1024,99274.0,99272.0,0.050396]
[1735064429859,0.411196,99273.0,99265.0,0.050399]
[1735064430057,0.411196,99273.0,99261.0,0.09754401]
[1735064430058,0.3608,99273.0,99261.0,0.09754401]
[1735064430357,0.1124,99274.0,99265.0,0.0504]
[1735064430563,0.1124,99274.0,99265.0,0.3608]
[1735064430858,0.1064,99274.0,99272.0,0.050396]
[1735064431067,0.005,99273.0,99272.0,0.050396]
[1735064432257,0.005,99273.0,99272.0,0.058446]
[1735064432850,0.009,99273.0,99272.0,0.058446]
[1735064433051,0.004,99273.0,99272.0,0.058446]
[1735064434352,0.004,99273.0,99272.0,0.06444906]
[1735064434552,0.011,99273.0,99272.0,0.06544906]
[1735064434960,0.011,99273.0,99272.0,0.07451906]
[1735064435158,0.061395,99273.0,99272.0,0.02412306]
[1735064436154,0.054395,99273.0,99272.0,0.02712306]
[1735064436349,0.051395,99273.0,99272.0,0.03312306]
[1735064436652,0.051395,99273.0,99272.0,0.02712]
[1735064436861,0.051395,99273.0,99272.0,0.02512]
[1735064437758,0.050395,99273.0,99272.0,0.01812]
[1735064437957,0.051395,99273.0,99272.0,0.02412]
[1735064438161,0.001,99273.0,99272.0,0.02412]
[1735064439454,0.3608,99274.0,99272.0,0.01812]
[1735064439654,0.051396,99273.0,99272.0,0.02412]
[1735064441267,0.050397,99271.0,99269.0,0.00705]
[1735064441866,0.050403,99260.0,99254.0,0.050405]
[1735064442255,0.3608,99264.0,99229.0,0.050418]
[1735064442256,0.050409,99248.0,99240.0,0.09754401]
[1735064442459,0.3608,99247.0,99241.0,0.00806]
[1735064442761,0.411209,99247.0,99241.0,0.066532]
[1735064442950,0.411209,99247.0,99242.0,0.00705]
[1735064443155,0.411209,99247.0,99242.0,0.057461]
[1735064443356,0.3608,99247.0,99242.0,0.057461]
[1735064444057,0.51086901,99247.0,99242.0,0.057461]
[1735064444255,0.050411,99244.0,99242.0,0.00705]
[1735064444652,0.050411,99244.0,99242.0,0.003]
[1735064445055,0.05754483,99243.0,99242.0,0.003]
[1735064446170,0.05854483,99243.0,99242.0,0.003]
[1735064446665,0.050412,99242.0,99241.0,0.01612]
[1735064447664,0.10795683,99242.0,99241.0,0.01612]
[1735064448171,0.050415,99235.0,99227.0,0.33055778]
[1735064448960,0.050415,99235.0,99231.0,0.00705]
[1735064449161,0.151415,99235.0,99231.0,0.00705]
[1735064449362,0.152415,99235.0,99232.0,0.01612]
[1735064449561,0.050416,99234.0,99232.0,0.01612]
[1735064449769,0.05754483,99234.0,99232.0,0.01612]
[1735064450469,0.10796083,99234.0,99232.0,0.01912]
[1735064451169,0.05754483,99233.0,99232.0,0.01912]
[1735064452573,0.05754483,99233.0,99232.0,0.01612]
[1735064452769,0.05754483,99233.0,99232.0,0.01812]
[1735064452966,0.05854483,99233.0,99232.0,0.01812]
[1735064453355,0.05854483,99233.0,99232.0,0.01612]
[1735064453560,0.05854483,99233.0,99232.0,0.01812]
[1735064455870,0.10896083,99233.0,99232.0,0.01812]
[1735064457373,0.10896083,99233.0,99212.0,0.050426]
[1735064457564,0.050427,99212.0,99210.0,0.00151174]
[1735064457975,0.043377,99212.0,99210.0,0.00151174]
[1735064458674,0.043377,99212.0,99210.0,0.01743174]
[1735064459173,0.044377,99212.0,99210.0,0.02331029]
[1735064459976,0.044377,99212.0,99210.0,0.02631029]
[1735064463281,0.050428,99211.0,99210.0,0.02631029]
[1735064463875,0.050428,99211.0,99210.0,0.02043174]
[1735064464077,0.144828,99211.0,99210.0,0.02043174]
[1735064464670,0.145828,99211.0,99210.0,0.02043174]
[1735064465969,0.145828,99211.0,99210.0,0.01892]
[1735064467875,0.001,99211.0,99210.0,0.01892]
[1735064468084,0.001,99211.0,99210.0,0.07523508]
[1735064468475,0.001,99211.0,99210.0,0.02480708]
[1735064468681,0.051427,99211.0,99210.0,0.01892]
[1735064471377,0.151427,99211.0,99210.0,0.01892]
[1735064471777,0.20851842,99211.0,99210.0,0.01892]
[1735064472390,0.21432043,99211.0,99210.0,0.01892]
[1735064473089,0.050432,99203.0,99197.0,0.050434]
[1735064473280,0.3608,99198.0,99197.0,0.050434]
[1735064474474,0.3618,99198.0,99196.0,0.0140812]
[1735064474686,0.050434,99197.0,99196.0,0.0140812]
[1735064475590,0.050434,99197.0,99196.0,0.00806]
[1735064475888,0.150334,99197.0,99196.0,0.00806]
[1735064476088,0.151334,99197.0,99196.0,0.00806]
[1735064476674,0.151334,99197.0,99196.0,1e-08]
[1735064477086,0.20830427,99197.0,99196.0,1e-08]
[1735064477673,0.20830427,99197.0,99179.0,0.00016]
[1735064477674,0.050443,99180.0,99179.0,0.00016]
[1735064477884,0.050443,99180.0,99175.0,0.00128135]
[1735064477885,0.050445,99176.0,99175.0,0.00128135]
[1735064478782,0.72220001,99180.0,99156.0,0.093]
[1735064478987,0.047435,99157.0,99156.0,0.093]
[1735064479578,0.050456,99156.0,99140.0,0.3618]
[1735064479784,0.09754401,99160.0,99138.0,0.3608]
[1735064479991,0.3608,99153.0,99140.0,0.09754401]
[1735064480190,0.050458,99150.0,99140.0,0.09754401]
[1735064480388,0.050458,99150.0,99141.0,0.050463]
[1735064480581,0.12041211,99158.0,99138.0,0.3608]
[1735064480786,0.050462,99144.0,99138.0,0.3608]
[1735064480987,0.050462,99144.0,99137.0,0.050464]
[1735064481488,0.09754401,99150.0,99140.0,0.001]
[1735064481789,0.1011,99152.0,99140.0,0.001]
[1735064481991,0.0902776,99146.0,99140.0,0.001]
[1735064482189,0.0902776,99146.0,99131.0,0.00886745]
[1735064482190,0.001,99144.0,99131.0,0.00886745]
[1735064482395,0.050464,99138.0,99137.0,0.001]
[1735064482582,0.411264,99138.0,99137.0,0.001]
[1735064483278,0.3608,99138.0,99131.0,0.00886745]
[1735064483478,0.050467,99133.0,99131.0,0.00886745]
[1735064483684,0.050467,99133.0,99131.0,0.00151291]
[1735064483988,0.050478,99111.0,99110.0,0.3608]
[1735064484191,0.4624,99138.0,99110.0,0.00743011]
[1735064484192,0.3608,99114.0,99110.0,0.00743011]
[1735064484380,0.3608,99114.0,99100.0,0.19754401]
[1735064484584,0.05048,99107.0,99100.0,0.19754401]
[1735064484999,0.3608,99114.0,99100.0,0.19754401]
[1735064485494,0.050478,99112.0,99105.0,0.050481]
[1735064485701,0.001,99107.0,99105.0,0.050481]
[1735064485987,0.001,99107.0,99106.0,0.0953]
[1735064486194,0.001,99114.0,99113.0,0.050477]
[1735064486393,0.002,99114.0,99113.0,0.050477]
[1735064486581,0.002,99114.0,99104.0,0.09754401]
[1735064486788,0.002,99114.0,99110.0,0.050479]
[1735064486981,0.001,99114.0,99111.0,0.1024]
[1735064487292,0.001,99112.0,99111.0,0.1024]
[1735064487695,0.052477,99114.0,99111.0,0.1024]
[1735064487900,0.051477,99114.0,99111.0,0.1024]
[1735064488195,0.001,99114.0,99111.0,0.1024]
[1735064488388,0.001,99114.0,99112.0,0.151178]
[1735064488696,0.002,99114.0,99113.0,0.3608]
[1735064489298,0.002,99114.0,99113.0,0.4579]
[1735064489488,0.001,99114.0,99113.0,0.4579]
[1735064490092,0.08996579,99122.0,99113.0,0.4579]
[1735064490289,0.001,99114.0,99113.0,0.508377]
[1735064490682,0.08996579,99122.0,99118.0,0.050474]
[1735064490886,0.08996579,99122.0,99121.0,0.3608]
[1735064491295,0.09096579,99122.0,99120.0,0.050473]
[1735064491481,0.001,99122.0,99121.0,0.3608]
[1735064493088,0.001,99122.0,99121.0,0.3628]
[1735064493592,0.3608,99131.0,99121.0,0.3628]
[1735064493792,0.3608,99131.0,99121.0,0.002]
[1735064493998,0.050471,99125.0,99113.0,0.35894272]
[1735064494295,0.3618,99122.0,99113.0,0.35894272]
[1735064494499,0.3618,99122.0,99117.0,0.050475]
[1735064494700,0.3608,99122.0,99121.0,0.002]
[1735064495391,0.3618,99122.0,99118.0,0.050475]
[1735064495894,0.3618,99122.0,99113.0,0.26384272]
[1735064496098,0.050474,99120.0,99113.0,0.26384272]
[1735064496295,0.411277,99114.0,99113.0,0.002]
[1735064497299,0.050478,99111.0,99110.0,0.00749688]
[1735064497498,0.050482,99104.0,99100.0,0.1]
[1735064497887,0.3618,99114.0,99100.0,0.1]
[1735064497888,0.050483,99102.0,99100.0,0.1]
[1735064498095,0.050487,99093.0,99092.0,0.00251374]
[1735064498299,0.411287,99093.0,99092.0,0.00151374]
[1735064498993,0.3608,99093.0,99080.0,0.3608]
[1735064499193,0.3608,99093.0,99080.0,0.36814646]
[1735064499393,0.050491,99087.0,99080.0,0.36814646]
[1735064499593,0.050491,99086.0,99080.0,0.36814646]
[1735064499999,0.3608,99085.0,99080.0,0.00734646]
[1735064500208,0.3608,99085.0,99066.0,0.3608]
[1735064500209,0.050494,99081.0,99073.0,0.050497]
[1735064500413,0.3608,99085.0,99067.0,0.0505]
[1735064500698,0.3608,99071.0,99060.0,0.00151409]
[1735064500906,0.3608,99071.0,99060.0,0.00905475]
[1735064500907,0.3608,99061.0,99060.0,0.00905475]
[1735064501094,0.3608,99061.0,99060.0,0.00151409]
[1735064501895,0.3608,99061.0,99031.0,0.1008]
[1735064502104,0.3608,99046.0,99040.0,0.050514]
[1735064502410,0.3608,99046.0,99041.0,0.01470887]
[1735064502709,0.050512,99045.0,99042.0,0.01470887]
[1735064503004,0.3608,99046.0,99024.0,0.050522]
[1735064503005,0.050516,99038.0,99024.0,0.050522]
[1735064503195,0.050517,99036.0,99024.0,0.050522]
[1735064503396,0.3608,99035.0,99010.0,0.09754401]
[1735064503707,0.3608,99027.0,99020.0,0.14806801]
[1735064504001,0.3608,99035.0,99024.0,0.050522]
[1735064504208,0.411318,99035.0,99024.0,0.050522]
[1735064504502,0.3608,99035.0,99025.0,0.01495712]
[1735064504807,0.3618,99035.0,99024.0,0.21835837]
[1735064505106,0.001,99027.0,99025.0,0.050522]
[1735064505309,0.050526,99018.0,99017.0,0.00151411]
[1735064505601,0.411326,99018.0,99017.0,0.00151411]
[1735064507301,0.412326,99018.0,99017.0,0.00151411]
[1735064507598,0.050531,99007.0,99000.0,0.1]
[1735064507799,0.050531,99007.0,99000.0,0.150535]
[1735064508103,0.050531,99007.0,99003.0,0.050533]
[1735064508800,0.001,99007.0,99003.0,0.050533]
[1735064509707,0.002,99007.0,99003.0,0.050533]
[1735064509902,0.002,99007.0,99000.0,0.1]
[1735064510105,0.002,99007.0,98976.0,0.00151548]
[1735064510106,0.050535,99000.0,98991.0,0.050539]
[1735064510308,0.3608,98992.0,98980.0,0.09754401]
[1735064510505,0.3608,99001.0,98984.0,0.3608]
[1735064510714,0.09754401,99000.0,98993.0,0.050538]
[1735064511206,0.09754401,99000.0,98995.0,0.050537]
[1735064511418,0.001,99000.0,98999.0,0.050535]
[1735064511607,0.001,99000.0,98992.0,0.050539]
[1735064511810,0.001,99000.0,98985.0,0.050542]
[1735064512115,0.002,99000.0,98996.0,0.050536]
[1735064512712,0.001,99000.0,98996.0,0.050536]
[1735064512911,0.002,99000.0,98998.0,0.050535]
[1735064513311,0.08985618,99019.0,98998.0,0.3]
[1735064513510,0.11980824,99025.0,99018.0,0.411326]
[1735064513808,0.11980824,99026.0,99024.0,0.050523]
[1735064514204,0.17389759,99043.0,99034.0,0.050517]
[1735064514413,0.12208611,99053.0,99052.0,0.050508]
[1735064514605,0.1923066,99060.0,99059.0,0.050505]
[1735064515002,0.050495,99078.0,99052.0,0.3608]
[1735064515216,0.050495,99078.0,99063.0,0.3608]
[1735064515416,0.09754401,99080.0,99063.0,0.3608]
[1735064515610,0.3608,99064.0,99060.0,0.09754401]
[1735064515817,0.3608,99064.0,99061.0,0.050504]
[1735064516113,0.3608,99064.0,99063.0,0.050503]
[1735064517405,0.3608,99072.0,99071.0,0.050499]
[1735064517609,0.3608,99083.0,99079.0,0.050494]
[1735064518324,0.3608,99083.0,99072.0,0.050498]
[1735064518914,0.3608,99083.0,99074.0,0.050497]
[1735064519417,0.3608,99083.0,99071.0,0.3608]
[1735064519806,0.3648,99083.0,99072.0,0.050498]
[1735064520010,0.3648,99083.0,99078.0,0.050495]
[1735064520519,0.3618,99083.0,99071.0,0.3618]
[1735064520714,0.3638,99083.0,99071.0,0.3618]
[1735064521120,1.5,99082.0,99071.0,0.3618]
[1735064521416,0.3608,99072.0,99071.0,0.001]
[1735064521614,0.3608,99072.0,99070.0,0.050499]
[1735064523225,0.3608,99072.0,99052.0,0.3608]
[1735064523523,0.3608,99072.0,99059.0,0.050504]
[1735064523719,0.3608,99072.0,99052.0,0.3683177]
[1735064523913,0.3608,99063.0,99052.0,0.3608]
[1735064524113,0.3608,99055.0,99054.0,0.050507]
[1735064525918,0.3618,99055.0,99054.0,0.001]
[1735064526318,0.3618,99055.0,99054.0,0.002]
[1735064527018,0.3618,99055.0,99054.0,0.001]
[1735064528024,0.3618,99055.0,99054.0,0.002]
[1735064528622,0.3618,99055.0,99054.0,0.052507]
[1735064529221,0.3618,99055.0,99054.0,0.051507]
[1735064529524,0.3618,99055.0,99054.0,0.052507]
[1735064529933,0.3618,99055.0,99054.0,0.002]
[1735064530121,0.3618,99055.0,99054.0,0.001]
[1735064530832,0.3618,99055.0,99054.0,0.002]
[1735064532727,0.3618,99055.0,99054.0,0.001]
[1735064532927,0.3618,99055.0,99054.0,0.002]
[1735064533126,0.3608,99064.0,99054.0,0.001]
[1735064533433,0.001,99055.0,99054.0,0.052507]
[1735064534528,0.3608,99064.0,99054.0,0.052507]
[1735064534732,0.00052001,99077.0,99076.0,0.050496]
[1735064534930,0.3608,99086.0,99085.0,0.050491]
[1735064536725,0.3608,99086.0,99084.0,0.050489]
[1735064536919,0.3608,99099.0,99094.0,0.050484]
[1735064537126,0.3608,99099.0,99089.0,0.14683398]
[1735064537328,0.3608,99099.0,99089.0,0.19732098]
[1735064537920,0.050483,99097.0,99085.0,0.003]
[1735064538126,0.3618,99099.0,99094.0,0.003]
[1735064538329,0.3618,99099.0,99096.0,0.050483]
[1735064539333,0.3618,99099.0,99094.0,0.003]
[1735064539727,0.3618,99099.0,99093.0,0.050485]
[1735064540034,0.3618,99099.0,99089.0,0.14883398]
[1735064540224,0.3608,99099.0,99098.0,0.050483]
[1735064540421,0.001,99099.0,99098.0,0.050483]
[1735064540727,0.3608,99120.0,99098.0,0.050483]
[1735064540923,0.46102001,99139.0,99116.0,0.3608]
[1735064541232,0.00052001,99139.0,99138.0,0.050463]
[1735064541436,0.15963746,99149.0,99148.0,0.050458]
[1735064541839,0.15963746,99149.0,99139.0,0.09782072]
[1735064542226,0.15963746,99149.0,99139.0,0.14660306]
[1735064542227,0.52043746,99149.0,99139.0,0.14660306]
[1735064542432,0.52043746,99149.0,99140.0,0.050463]
[1735064542828,0.3608,99149.0,99138.0,0.00848927]
[1735064543031,0.3608,99141.0,99124.0,0.17711772]
[1735064543234,0.3608,99141.0,99130.0,0.14660306]
[1735064543540,0.050464,99139.0,99130.0,0.14660306]
[1735064544036,0.3608,99141.0,99130.0,0.19707106]
[1735064544236,0.3608,99141.0,99130.0,0.19807106]
[1735064544542,0.3618,99141.0,99130.0,0.01]
[1735064544742,0.3618,99141.0,99130.0,0.15660306]
[1735064545036,0.3608,99131.0,99130.0,0.01]
[1735064545431,0.411268,99131.0,99130.0,0.01]
[1735064545631,0.411268,99131.0,99105.0,0.0015135]
[1735064545632,0.05047,99127.0,99105.0,0.0015135]
[1735064545836,0.3608,99115.0,99110.0,0.14660306]
[1735064547042,0.3608,99115.0,99110.0,0.15560306]
[1735064547435,0.3618,99115.0,99110.0,0.15660306]
[1735064548834,0.3618,99115.0,99111.0,0.050478]
[1735064549332,0.3628,99115.0,99113.0,0.050477]
[1735064550434,0.3618,99115.0,99113.0,0.050477]
[1735064550644,0.3618,99115.0,99113.0,0.059477]
[1735064551634,0.3618,99115.0,99113.0,0.009]
[1735064552034,0.412277,99115.0,99113.0,0.009]
[1735064553839,0.3618,99115.0,99113.0,0.009]
[1735064554037,0.001,99115.0,99113.0,0.059477]
[1735064559934,0.051477,99115.0,99113.0,0.009]
[1735064560135,0.0996,99114.0,99113.0,0.009]
[1735064560945,0.0996,99114.0,99113.0,0.059477]
[1735064562249,0.1006,99114.0,99113.0,0.059477]
[1735064563739,0.1006,99114.0,99113.0,0.009]
[1735064569044,0.151077,99114.0,99113.0,0.009]
[1735064569253,0.1006,99114.0,99113.0,0.009]
[1735064570848,0.151076,99114.0,99113.0,0.009]
[1735064571053,0.050481,99106.0,99105.0,0.0015135]
[1735064571353,0.050482,99104.0,99103.0,0.02263122]
[1735064572150,0.3608,99106.0,99093.0,0.23677976]
[1735064572361,0.413281,99106.0,99105.0,0.009]
[1735064572855,0.001,99104.0,99100.0,0.00825552]
[1735064573043,0.001,99104.0,99094.0,0.050487]
[1735064573245,0.050483,99103.0,99094.0,0.050487]
[1735064574842,0.48263957,99106.0,99105.0,0.050481]
[1735064575046,0.14646979,99114.0,99113.0,0.050477]
[1735064575450,0.14646979,99114.0,99104.0,0.14660306]
[1735064575657,0.54119698,99122.0,99105.0,0.050482]
[1735064575856,0.54119698,99122.0,99118.0,0.050475]
[1735064576055,0.54119698,99122.0,99119.0,0.050474]
[1735064576056,0.3608,99122.0,99119.0,0.050474]
[1735064576648,0.3608,99122.0,99113.0,0.009]
[1735064576848,0.3608,99122.0,99117.0,0.050475]
[1735064577156,0.3608,99122.0,99113.0,0.059477]
[1735064577354,0.001,99114.0,99113.0,0.059477]
[1735064577752,0.001,99114.0,99113.0,0.050477]
[1735064578260,0.412273,99122.0,99117.0,0.002]
[1735064578961,0.411273,99122.0,99115.0,0.050476]
[1735064580559,0.3618,99122.0,99117.0,0.061475]
[1735064580755,0.3618,99122.0,99121.0,0.050473]
[1735064581754,0.3608,99135.0,99134.0,0.050467]
[1735064581952,0.18039698,99142.0,99141.0,0.050463]
[1735064582151,0.15828728,99142.0,99141.0,0.050463]
[1735064582666,0.3608,99157.0,99140.0,0.3608]
[1735064582956,0.3608,99148.0,99131.0,0.3608]
[1735064583164,0.3608,99148.0,99131.0,0.050468]
[1735064583353,0.3608,99148.0,99138.0,0.14660306]
[1735064583947,0.3608,99148.0,99144.0,0.050461]
[1735064584259,0.3608,99157.0,99146.0,0.05046]
[1735064584451,0.3608,99157.0,99149.0,0.050459]
[1735064584761,0.3608,99157.0,99150.0,0.050459]
[1735064585359,0.3608,99157.0,99138.0,0.001]
[1735064585660,0.3608,99139.0,99138.0,0.001]
[1735064585958,0.3608,99139.0,99132.0,0.23677976]
[1735064586165,0.050467,99134.0,99132.0,0.23677976]
[1735064586461,0.050463,99142.0,99134.0,0.050466]
[1735064586647,0.3608,99147.0,99134.0,0.050466]
[1735064586853,0.050464,99140.0,99134.0,0.050466]
[1735064587052,0.3608,99136.0,99120.0,0.15503487]
[1735064587261,0.3608,99136.0,99129.0,0.050469]
[1735064587451,0.3608,99136.0,99120.0,0.15503487]
[1735064587652,0.3608,99136.0,99120.0,0.00843181]
[1735064587958,0.3608,99121.0,99115.0,0.23677976]
[1735064588152,0.411274,99121.0,99120.0,0.001]
[1735064590052,0.3608,99121.0,99100.0,0.23677976]
[1735064590244,0.3608,99101.0,99100.0,0.23677976]
[1735064590454,0.3608,99101.0,99093.0,0.28726676]
[1735064591353,0.3618,99101.0,99100.0,0.008]
[1735064592163,0.3618,99101.0,99100.0,0.006]
[1735064592352,0.001,99101.0,99100.0,0.006]
[1735064592659,0.001,99101.0,99093.0,0.002]
[1735064592957,0.3608,99098.0,99093.0,0.002]
[1735064593258,0.002,99101.0,99098.0,0.050484]
[1735064593259,0.001,99101.0,99098.0,0.050484]
[1735064593454,0.002,99101.0,99093.0,0.002]
[1735064593868,0.3608,99095.0,99085.0,0.23677976]
[1735064594067,0.3608,99095.0,99088.0,0.050489]
[1735064594563,0.3608,99098.0,99085.0,0.00846028]
[1735064594763,0.050487,99094.0,99093.0,0.001]
[1735064595461,0.050487,99094.0,99088.0,0.001]
[1735064596456,0.3608,99089.0,99088.0,0.001]
[1735064596863,0.3608,99089.0,99082.0,0.00826248]
[1735064597158,0.3588,99089.0,99081.0,0.05200668]
[1735064597559,0.40929,99089.0,99081.0,0.00151368]
[1735064597765,0.41129,99089.0,99088.0,0.002]
[1735064598160,0.3608,99089.0,99088.0,0.002]
[1735064599468,0.4599,99089.0,99081.0,0.00251368]
[1735064599660,0.050493,99082.0,99081.0,0.00451368]
[1735064599859,0.049493,99082.0,99081.0,0.00351368]
[1735064600964,0.049493,99082.0,99081.0,0.00151368]
[1735064602069,0.050493,99082.0,99081.0,0.00151368]
[1735064604167,0.001,99082.0,99081.0,0.00151368]
[1735064605060,0.36903314,99103.0,99081.0,0.00151368]
[1735064605061,0.00052001,99103.0,99081.0,0.66231368]
[1735064605257,0.54141415,99122.0,99081.0,0.66231368]
[1735064605258,0.54141415,99122.0,99111.0,0.050478]
[1735064605470,0.54141415,99122.0,99114.0,0.050476]
[1735064606059,0.411273,99122.0,99114.0,0.050476]
[1735064606460,0.418273,99122.0,99114.0,0.050476]
[1735064606863,0.050475,99118.0,99099.0,0.3608]
[1735064607165,0.050476,99115.0,99103.0,0.050482]
[1735064607372,0.050476,99115.0,99099.0,0.3608]
[1735064607677,0.050476,99115.0,99099.0,0.3695819]
[1735064607863,0.050477,99113.0,99105.0,0.050481]
[1735064608064,0.05048,99109.0,99099.0,0.3707019]
[1735064608367,0.14660306,99110.0,99099.0,0.3695819]
[1735064608567,0.3608,99101.0,99099.0,0.0087819]
[1735064608770,0.3608,99101.0,99100.0,0.050484]
[1735064609770,0.050479,99109.0,99100.0,0.050484]
[1735064609974,0.001,99101.0,99100.0,0.051484]
[1735064610169,0.001,99101.0,99100.0,0.001]
[1735064610371,0.051483,99101.0,99100.0,0.001]
[1735064611172,0.051483,99101.0,99081.0,0.36231368]
[1735064611173,0.050493,99082.0,99081.0,0.00151368]
[1735064611360,0.050496,99076.0,99050.0,0.36192]
[1735064611560,0.050496,99076.0,99049.0,0.05051]
[1735064611767,0.050496,99076.0,99050.0,0.050509]
[1735064612069,0.050496,99076.0,99033.0,0.1879]
[1735064612070,0.350496,99076.0,99033.0,0.1879]
[1735064612269,0.050502,99064.0,99063.0,0.29633183]
[1735064612470,0.050507,99056.0,99055.0,0.35244523]
[1735064612675,0.411307,99056.0,99055.0,0.35244523]
[1735064612967,0.3608,99056.0,99041.0,0.41147041]
[1735064613170,0.3608,99042.0,99041.0,0.41027041]
[1735064613773,0.3608,99042.0,99035.0,0.00857684]
[1735064613973,0.411314,99042.0,99031.0,0.050519]
[1735064614770,0.050519,99033.0,99021.0,0.050524]
[1735064614970,0.3608,99042.0,99016.0,0.00151488]
[1735064614971,0.3608,99032.0,99016.0,0.00151488]
[1735064615275,0.050522,99027.0,99016.0,0.00151488]
[1735064615861,0.050522,99027.0,99016.0,0.05204188]
[1735064616571,0.051522,99027.0,99016.0,0.05204188]
[1735064617275,0.052522,99027.0,99016.0,0.05204188]
[1735064617866,0.052522,99027.0,99016.0,0.00151488]
[1735064617867,0.3608,99021.0,99016.0,0.00151488]
[1735064618076,0.050526,99018.0,99016.0,0.00151488]
[1735064619275,0.3618,99021.0,99016.0,0.00151488]
[1735064619470,0.001,99027.0,99017.0,0.3608]
[1735064619675,0.15037194,99044.0,99026.0,0.3608]
[1735064620001,0.15037194,99044.0,99030.0,0.14660306]
[1735064620177,0.3608,99046.0,99030.0,0.14660306]
[1735064620366,0.3608,99046.0,99031.0,0.050519]
[1735064620572,0.3608,99046.0,99030.0,0.44660306]
[1735064620872,0.15037194,99056.0,99045.0,0.3608]
[1735064621174,0.15037194,99056.0,99038.0,0.411315]
[1735064621175,0.15037194,99056.0,99055.0,0.3608]
[1735064621769,0.3608,99056.0,99040.0,0.14660306]
[1735064621969,0.050513,99042.0,99036.0,0.3608]
[1735064622175,0.050512,99044.0,99030.0,0.15548174]
[1735064622679,0.050512,99044.0,98408.0,0.12402428]
[1735064622680,0.050533,99003.0,98977.0,0.3608]
[1735064622875,0.3608,99014.0,98986.0,0.01043348]
[1735064623072,0.3608,99014.0,98986.0,0.00151463]
[1735064623073,0.3608,99003.0,98986.0,0.00151463]
[1735064623382,0.3608,99003.0,98994.0,0.3608]
[1735064623581,0.3608,99003.0,98990.0,0.14660306]
[1735064623774,0.051533,99003.0,98988.0,0.3608]
[1735064624077,0.051533,99003.0,98996.0,0.3608]
[1735064624382,0.050535,99001.0,98996.0,0.3608]
[1735064624588,0.002,99003.0,98994.0,0.002]
[1735064624882,0.050537,98997.0,98994.0,0.002]
[1735064625286,0.050541,98987.0,98986.0,0.00351463]
[1735064626074,0.050541,98987.0,98937.0,0.3608]
[1735064626075,0.05056,98950.0,98937.0,0.3608]
[1735064626276,0.3608,98942.0,98930.0,0.14660306]
[1735064626477,0.3608,98933.0,98930.0,0.14660306]
[1735064626681,0.3608,98933.0,98931.0,0.0146767]
[1735064626879,0.3608,98942.0,98932.0,0.0146767]
[1735064627181,0.3608,98934.0,98933.0,0.0146767]
[1735064627371,0.3598,98934.0,98933.0,0.0146767]
[1735064627579,0.3598,98934.0,98933.0,0.0652457]
[1735064627884,0.001,98950.0,98949.0,0.050561]
[1735064628181,0.001,98950.0,98947.0,0.050561]
[1735064628375,0.001,98950.0,98948.0,0.050561]
[1735064628974,0.3608,98953.0,98948.0,0.050561]
[1735064629483,0.001,98950.0,98948.0,0.050561]
[1735064629881,0.001,98950.0,98940.0,0.050565]
[1735064630089,0.3608,98953.0,98940.0,0.050565]
[1735064630090,0.3608,98945.0,98944.0,0.050563]
[1735064632275,0.3618,98945.0,98944.0,0.050563]
[1735064632987,0.001,98945.0,98944.0,0.050563]
[1735064633188,0.3608,98953.0,98940.0,0.14660306]
[1735064633378,0.3608,98953.0,98947.0,0.050562]
[1735064633777,0.3608,98953.0,98948.0,0.050561]
[1735064633987,0.3608,98950.0,98939.0,0.050566]
[1735064634186,0.3608,98940.0,98939.0,0.050566]
[1735064635384,0.3608,98948.0,98942.0,0.050564]
[1735064635779,0.3608,98948.0,98946.0,0.050562]
[1735064636686,0.3608,98948.0,98925.0,0.36949411]
[1735064636687,0.3618,98948.0,98936.0,0.050567]
[1735064636889,0.3608,98939.0,98936.0,0.050567]
[1735064637087,0.3608,98939.0,98937.0,0.050567]
[1735064637878,0.3608,98939.0,98938.0,0.01471903]
[1735064638283,0.3608,98939.0,98937.0,0.050567]
[1735064638788,0.3608,98939.0,98925.0,0.00870721]
[1735064638990,0.3608,98931.0,98930.0,0.050571]
[1735064639186,0.3608,98931.0,98930.0,0.01480574]
[1735064640412,0.3618,98931.0,98930.0,0.01480574]
[1735064640617,0.3618,98931.0,98930.0,0.06537674]
[1735064641913,0.3608,98931.0,98930.0,0.06537674]
[1735064642112,0.3618,98931.0,98922.0,0.0015163]
[1735064642413,0.3618,98931.0,98920.0,0.14660306]
[1735064642715,0.3608,98939.0,98936.0,0.050567]
[1735064642912,0.050567,98937.0,98922.0,0.050575]
[1735064643120,0.3608,98926.0,98920.0,0.00862155]
[1735064643329,0.3608,98926.0,98924.0,0.050574]
[1735064644412,0.002,98931.0,98928.0,0.050572]
[1735064644615,0.002,98931.0,98929.0,0.050571]
[1735064645317,0.3608,98930.0,98912.0,0.00881729]
[1735064645510,0.3608,98930.0,98912.0,0.3]